[Event "Early-Titled-Tuesday-Blitz-February-06-2024"]
[Site "Chess.com"]
[Date "2024.02.06"]
[Round "10"]
[White "emeli_chess"]
[Black "Iana_Shirova"]
[Result "0-1"]
[WhiteElo "2396"]
[BlackElo "2315"]
[TimeControl "180+1"]
[EndTime "9:56:04 PST"]
[Termination "Iana_Shirova won by resignation"]

1. d4 {[%clk 0:03:00.9]} 1... d5 {[%clk 0:02:59.2]} 2. c4 {[%clk 0:02:56.7]}
2... c6 {[%clk 0:02:59.3]} 3. Nc3 {[%clk 0:02:56.4]} 3... dxc4 {[%clk
0:02:59.2]} 4. e4 {[%clk 0:02:55.5]} 4... e5 {[%clk 0:02:57.1]} 5. Be3 {[%clk
0:02:41.4]} 5... exd4 {[%clk 0:02:46.2]} 6. Qxd4 {[%clk 0:02:40.2]} 6... Qxd4
{[%clk 0:02:44.2]} 7. Bxd4 {[%clk 0:02:40.3]} 7... Be6 {[%clk 0:02:43.9]} 8. Nf3
{[%clk 0:02:37.4]} 8... f6 {[%clk 0:02:42.9]} 9. Nd2 {[%clk 0:02:34.2]} 9... b5
{[%clk 0:02:39.5]} 10. a4 {[%clk 0:02:33.8]} 10... b4 {[%clk 0:02:39.3]} 11. Na2
{[%clk 0:02:21.1]} 11... c5 {[%clk 0:01:49.1]} 12. Be3 {[%clk 0:02:17]} 12... c3
{[%clk 0:01:48.8]} 13. Nc4 {[%clk 0:02:11]} 13... cxb2 {[%clk 0:01:14.7]} 14.
Nxb2 {[%clk 0:01:50.6]} 14... Nd7 {[%clk 0:01:08.5]} 15. Bc4 {[%clk 0:01:41.6]}
15... Bxc4 {[%clk 0:00:52.6]} 16. Nxc4 {[%clk 0:01:41.6]} 16... Nb6 {[%clk
0:00:53.2]} 17. Nxb6 {[%clk 0:01:22.1]} 17... axb6 {[%clk 0:00:52.9]} 18. Nc1
{[%clk 0:01:22.2]} 18... Ne7 {[%clk 0:00:50.2]} 19. Ke2 {[%clk 0:01:10.4]} 19...
Nc6 {[%clk 0:00:49.7]} 20. Rd1 {[%clk 0:01:10.1]} 20... Be7 {[%clk 0:00:49.3]}
21. Nb3 {[%clk 0:01:04]} 21... c4 {[%clk 0:00:45.5]} 22. Nd4 {[%clk 0:01:03.6]}
22... Nxd4+ {[%clk 0:00:45.9]} 23. Bxd4 {[%clk 0:01:03.2]} 23... Bc5 {[%clk
0:00:46.5]} 24. Bxc5 {[%clk 0:00:54.5]} 24... bxc5 {[%clk 0:00:47.4]} 25. Rd5
{[%clk 0:00:54.7]} 25... Ra5 {[%clk 0:00:44.6]} 26. Rc1 {[%clk 0:00:44.3]} 26...
c3 {[%clk 0:00:43.9]} 27. Kd3 {[%clk 0:00:39.2]} 27... O-O {[%clk 0:00:43.2]}
28. Kc4 {[%clk 0:00:39.3]} 28... Rc8 {[%clk 0:00:41.5]} 29. Kb3 {[%clk
0:00:28.2]} 29... Rca8 {[%clk 0:00:29.5]} 30. Rcd1 {[%clk 0:00:19.6]} 30... Rb8
{[%clk 0:00:17.7]} 31. Rd7 {[%clk 0:00:14.5]} 31... c4+ {[%clk 0:00:16.9]} 32.
Kxc4 {[%clk 0:00:14.6]} 32... c2 {[%clk 0:00:17.1]} 33. Rc1 {[%clk 0:00:11]}
33... b3 {[%clk 0:00:17.4]} 34. Kc3 {[%clk 0:00:09.1]} 34... Rxa4 {[%clk
0:00:17.1]} 35. Kb2 {[%clk 0:00:07.2]} 35... Ra2+ {[%clk 0:00:17]} 36. Kc3
{[%clk 0:00:07.3]} 36... b2 {[%clk 0:00:16.7]} 37. Kxc2 {[%clk 0:00:07]} 37...
bxc1=Q+ {[%clk 0:00:15.7]} 38. Kxc1 {[%clk 0:00:07.3]} 38... Ra1+ {[%clk
0:00:15.4]} 39. Kd2 {[%clk 0:00:07.3]} 39... Ra2+ {[%clk 0:00:14.7]} 40. Ke3
{[%clk 0:00:07.4]} 40... Rbb2 {[%clk 0:00:15]} 41. f4 {[%clk 0:00:05.2]} 41...
Re2+ {[%clk 0:00:14.6]} 42. Kf3 {[%clk 0:00:04.5]} 42... Rf2+ {[%clk 0:00:14.6]}
43. Ke3 {[%clk 0:00:04.6]} 43... Rxg2 {[%clk 0:00:15.1]} 44. e5 {[%clk
0:00:04.5]} 44... Rge2+ {[%clk 0:00:15.3]} 45. Kf3 {[%clk 0:00:04.4]} 45... fxe5
{[%clk 0:00:15.6]} 46. f5 {[%clk 0:00:04.6]} 46... Rf2+ {[%clk 0:00:14.6]} 47.
Ke4 {[%clk 0:00:04.7]} 47... Rae2+ {[%clk 0:00:14.9]} 48. Kd5 {[%clk 0:00:04.8]}
48... Rd2+ {[%clk 0:00:15.2]} 49. Ke6 {[%clk 0:00:05.2]} 49... Rxd7 {[%clk
0:00:16.1]} 50. Kxd7 {[%clk 0:00:04.7]} 50... Rxf5 {[%clk 0:00:16.6]} 0-1

[Event "Early-Titled-Tuesday-Blitz-February-06-2024"]
[Site "Chess.com"]
[Date "2024.02.06"]
[Round "10"]
[White "Maitreia"]
[Black "Alex_Sahakyan2006"]
[Result "0-1"]
[WhiteElo "2758"]
[BlackElo "2905"]
[TimeControl "180+1"]
[EndTime "9:56:05 PST"]
[Termination "Alex_Sahakyan2006 won by resignation"]

1. c4 {[%clk 0:03:00.9]} 1... Nf6 {[%clk 0:02:58.2]} 2. Nc3 {[%clk 0:03:00.9]}
2... c5 {[%clk 0:02:58.9]} 3. g3 {[%clk 0:03:01.1]} 3... g6 {[%clk 0:02:59]} 4.
Bg2 {[%clk 0:03:01.6]} 4... Bg7 {[%clk 0:02:59.8]} 5. Nf3 {[%clk 0:03:02.4]}
5... O-O {[%clk 0:03:00.5]} 6. O-O {[%clk 0:03:03.1]} 6... Nc6 {[%clk 0:03:01]}
7. d3 {[%clk 0:03:03.7]} 7... d6 {[%clk 0:02:57.6]} 8. a3 {[%clk 0:03:03.8]}
8... a6 {[%clk 0:02:57.3]} 9. Rb1 {[%clk 0:03:04.3]} 9... Rb8 {[%clk 0:02:58]}
10. b4 {[%clk 0:03:04.6]} 10... cxb4 {[%clk 0:02:58.9]} 11. axb4 {[%clk
0:03:05.5]} 11... b5 {[%clk 0:02:59.7]} 12. c5 {[%clk 0:03:06.1]} 12... dxc5
{[%clk 0:02:44.7]} 13. bxc5 {[%clk 0:03:07]} 13... Nd7 {[%clk 0:02:43.7]} 14. d4
{[%clk 0:02:33.8]} 14... Bb7 {[%clk 0:02:06.9]} 15. Bb2 {[%clk 0:02:22.7]} 15...
e6 {[%clk 0:01:18.8]} 16. Ne4 {[%clk 0:02:22.6]} 16... Na5 {[%clk 0:01:16.5]}
17. Nd6 {[%clk 0:02:20.8]} 17... Bc6 {[%clk 0:01:10.8]} 18. e4 {[%clk
0:02:18.3]} 18... Nc4 {[%clk 0:01:03.1]} 19. Nxc4 {[%clk 0:02:07.1]} 19... bxc4
{[%clk 0:01:03.6]} 20. Ba1 {[%clk 0:02:08]} 20... Bxe4 {[%clk 0:01:01.2]} 21.
Rxb8 {[%clk 0:02:04.3]} 21... Nxb8 {[%clk 0:01:01.5]} 22. Qa4 {[%clk 0:01:56.3]}
22... Qd5 {[%clk 0:01:01.3]} 23. Nh4 {[%clk 0:01:50.6]} 23... Bxg2 {[%clk
0:01:01]} 24. Nxg2 {[%clk 0:01:51.5]} 24... Bxd4 {[%clk 0:00:56.8]} 25. Rd1
{[%clk 0:01:35.5]} 25... Nc6 {[%clk 0:00:56.9]} 26. Ne3 {[%clk 0:01:29.9]} 26...
Qxc5 {[%clk 0:00:56.9]} 27. Ng4 {[%clk 0:01:09.2]} 27... e5 {[%clk 0:00:40.3]}
28. Nf6+ {[%clk 0:00:57.3]} 28... Kg7 {[%clk 0:00:40.6]} 29. Nd7 {[%clk
0:00:58.2]} 29... Qb5 {[%clk 0:00:41.2]} 30. Qxb5 {[%clk 0:00:50.4]} 30... axb5
{[%clk 0:00:42.1]} 31. Nxf8 {[%clk 0:00:51.1]} 31... Kxf8 {[%clk 0:00:43]} 32.
Kf1 {[%clk 0:00:49.7]} 32... b4 {[%clk 0:00:41.2]} 33. Ke2 {[%clk 0:00:41.1]}
33... b3 {[%clk 0:00:38.7]} 34. Rb1 {[%clk 0:00:31.9]} 34... c3 {[%clk
0:00:15.5]} 35. Rxb3 {[%clk 0:00:24]} 35... c2 {[%clk 0:00:16]} 36. Kd2 {[%clk
0:00:24.7]} 36... Bxa1 {[%clk 0:00:16.1]} 37. Ra3 {[%clk 0:00:21.9]} 37... Bd4
{[%clk 0:00:11.8]} 38. Kxc2 {[%clk 0:00:18.8]} 38... Bxf2 {[%clk 0:00:11.8]} 39.
Kd2 {[%clk 0:00:19.2]} 39... Bd4 {[%clk 0:00:10.2]} 40. Kd3 {[%clk 0:00:18.4]}
40... Kg7 {[%clk 0:00:09]} 41. g4 {[%clk 0:00:17.5]} 41... Nd8 {[%clk
0:00:06.7]} 42. Ke4 {[%clk 0:00:15.9]} 42... Ne6 {[%clk 0:00:06.8]} 43. h4
{[%clk 0:00:16.5]} 43... Bf2 {[%clk 0:00:06.9]} 44. h5 {[%clk 0:00:15]} 44...
Bd4 {[%clk 0:00:06.2]} 45. Ra8 {[%clk 0:00:08]} 45... Kh6 {[%clk 0:00:06.3]} 46.
hxg6 {[%clk 0:00:06.2]} 46... hxg6 {[%clk 0:00:06.8]} 47. Ra2 {[%clk 0:00:04.7]}
47... Kg5 {[%clk 0:00:06.8]} 48. Rg2 {[%clk 0:00:05.3]} 48... f6 {[%clk
0:00:06.6]} 49. Kd5 {[%clk 0:00:04.2]} 49... Nf4+ {[%clk 0:00:06.8]} 50. Ke4
{[%clk 0:00:04.3]} 50... Nxg2 {[%clk 0:00:07.7]} 0-1

[Event "Early-Titled-Tuesday-Blitz-February-06-2024"]
[Site "Chess.com"]
[Date "2024.02.06"]
[Round "10"]
[White "azikom"]
[Black "gmcorrales"]
[Result "1/2-1/2"]
[WhiteElo "2732"]
[BlackElo "2869"]
[TimeControl "180+1"]
[EndTime "9:56:05 PST"]
[Termination "Game drawn by repetition"]

1. d4 {[%clk 0:03:00]} 1... Nf6 {[%clk 0:02:59.1]} 2. c4 {[%clk 0:02:59.5]} 2...
g6 {[%clk 0:02:58.9]} 3. Nc3 {[%clk 0:02:59.7]} 3... d5 {[%clk 0:02:57.5]} 4.
Bg5 {[%clk 0:02:58]} 4... Ne4 {[%clk 0:02:56.8]} 5. Bh4 {[%clk 0:02:57.9]} 5...
Nxc3 {[%clk 0:02:56.2]} 6. bxc3 {[%clk 0:02:58.8]} 6... c6 {[%clk 0:02:56.9]} 7.
e3 {[%clk 0:02:58]} 7... Nd7 {[%clk 0:02:55.7]} 8. Nf3 {[%clk 0:02:57.7]} 8...
Bg7 {[%clk 0:02:55.7]} 9. Be2 {[%clk 0:02:53.8]} 9... dxc4 {[%clk 0:02:56.1]}
10. Bxc4 {[%clk 0:02:53.6]} 10... b5 {[%clk 0:02:56.5]} 11. Be2 {[%clk
0:02:53.7]} 11... Nb6 {[%clk 0:02:56.8]} 12. O-O {[%clk 0:02:53.2]} 12... Be6
{[%clk 0:02:57]} 13. e4 {[%clk 0:02:43.1]} 13... O-O {[%clk 0:02:56.4]} 14. Qc2
{[%clk 0:02:40]} 14... a5 {[%clk 0:02:56.2]} 15. Ne5 {[%clk 0:02:32.2]} 15...
Bxe5 {[%clk 0:02:54]} 16. dxe5 {[%clk 0:02:32.1]} 16... Qc7 {[%clk 0:02:52.7]}
17. f4 {[%clk 0:02:31.9]} 17... Bc4 {[%clk 0:02:52.9]} 18. Rad1 {[%clk
0:01:53.3]} 18... Rfd8 {[%clk 0:02:51.4]} 19. Rd4 {[%clk 0:01:50.8]} 19... c5
{[%clk 0:02:49.6]} 20. Rxd8+ {[%clk 0:01:49.9]} 20... Rxd8 {[%clk 0:02:50.5]}
21. Rd1 {[%clk 0:01:45.9]} 21... Bxe2 {[%clk 0:02:49.1]} 22. Qxe2 {[%clk
0:01:45.6]} 22... Nc4 {[%clk 0:02:47.9]} 23. h3 {[%clk 0:01:41.5]} 23... a4
{[%clk 0:02:43.9]} 24. Rd5 {[%clk 0:01:40.1]} 24... Rd7 {[%clk 0:02:30.3]} 25.
Bf2 {[%clk 0:01:34.1]} 25... e6 {[%clk 0:02:23.7]} 26. Rxc5 {[%clk 0:01:31.7]}
26... Qb7 {[%clk 0:02:23.8]} 27. Bd4 {[%clk 0:01:21.4]} 27... h6 {[%clk
0:02:19.5]} 28. Kh2 {[%clk 0:01:20.7]} 28... Kh7 {[%clk 0:02:19.3]} 29. Qf2
{[%clk 0:01:15.5]} 29... Qxe4 {[%clk 0:02:18.3]} 30. Rxb5 {[%clk 0:01:11.3]}
30... a3 {[%clk 0:02:05.9]} 31. Rb8 {[%clk 0:01:06.3]} 31... Rb7 {[%clk
0:02:02.3]} 32. Rxb7 {[%clk 0:00:54.7]} 32... Qxb7 {[%clk 0:02:03.2]} 33. Qe2
{[%clk 0:00:54.3]} 33... Qd5 {[%clk 0:02:03.3]} 34. Qc2 {[%clk 0:00:39.8]} 34...
Qb5 {[%clk 0:01:58.4]} 35. Qe2 {[%clk 0:00:36.7]} 35... Kg7 {[%clk 0:01:54.3]}
36. Qg4 {[%clk 0:00:34.1]} 36... Nd2 {[%clk 0:01:42.5]} 37. Qh4 {[%clk
0:00:32.3]} 37... Qd5 {[%clk 0:01:28]} 38. Qf6+ {[%clk 0:00:31.1]} 38... Kg8
{[%clk 0:01:28.1]} 39. Qe7 {[%clk 0:00:29.3]} 39... Nf1+ {[%clk 0:01:04.3]} 40.
Kg1 {[%clk 0:00:27.9]} 40... Ng3 {[%clk 0:01:05.2]} 41. Kh2 {[%clk 0:00:22.1]}
41... Nf1+ {[%clk 0:00:40.2]} 42. Kg1 {[%clk 0:00:21.7]} 42... Ng3 {[%clk
0:00:40.6]} 43. Kh2 {[%clk 0:00:21.8]} 43... Nh5 {[%clk 0:00:36.4]} 44. Bc5
{[%clk 0:00:19.7]} 44... Qa8 {[%clk 0:00:33.2]} 45. Qh4 {[%clk 0:00:17.2]} 45...
Ng7 {[%clk 0:00:31.1]} 46. Qxh6 {[%clk 0:00:12.4]} 46... Qc8 {[%clk 0:00:30.6]}
47. Bd4 {[%clk 0:00:11.9]} 47... Qc4 {[%clk 0:00:29.7]} 48. Qh4 {[%clk
0:00:09.7]} 48... Qxa2 {[%clk 0:00:27.2]} 49. Qd8+ {[%clk 0:00:09.4]} 49... Kh7
{[%clk 0:00:27.8]} 50. Qh4+ {[%clk 0:00:08.8]} 50... Nh5 {[%clk 0:00:27.6]} 51.
Qe7 {[%clk 0:00:09]} 51... Kg7 {[%clk 0:00:27.7]} 52. Bc5 {[%clk 0:00:08.8]}
52... Qd2 {[%clk 0:00:22.3]} 53. Qf8+ {[%clk 0:00:07.2]} 53... Kh7 {[%clk
0:00:22.7]} 54. Qxf7+ {[%clk 0:00:07.3]} 54... Kh8 {[%clk 0:00:23.3]} 55. Qf8+
{[%clk 0:00:07.4]} 55... Kh7 {[%clk 0:00:23.6]} 56. Qf7+ {[%clk 0:00:07.8]}
56... Kh8 {[%clk 0:00:20.3]} 57. Qf8+ {[%clk 0:00:08]} 57... Kh7 {[%clk
0:00:20.6]} 58. Qf7+ {[%clk 0:00:08.5]} 1/2-1/2

[Event "Early-Titled-Tuesday-Blitz-February-06-2024"]
[Site "Chess.com"]
[Date "2024.02.06"]
[Round "10"]
[White "Ural_bogatyr"]
[Black "Nikolakis2014"]
[Result "1/2-1/2"]
[WhiteElo "2574"]
[BlackElo "2730"]
[TimeControl "180+1"]
[EndTime "9:56:05 PST"]
[Termination "Game drawn by agreement"]

1. d4 {[%clk 0:03:00.9]} 1... Nf6 {[%clk 0:02:59.1]} 2. Nc3 {[%clk 0:03:00.7]}
2... d5 {[%clk 0:02:58]} 3. Bf4 {[%clk 0:03:01.1]} 3... c5 {[%clk 0:02:57.4]} 4.
e4 {[%clk 0:03:00.9]} 4... Nxe4 {[%clk 0:02:56.9]} 5. Nxe4 {[%clk 0:03:00.7]}
5... dxe4 {[%clk 0:02:57.2]} 6. dxc5 {[%clk 0:03:01.6]} 6... Qa5+ {[%clk
0:02:51.4]} 7. c3 {[%clk 0:02:55.2]} 7... Qxc5 {[%clk 0:02:50.2]} 8. Qa4+ {[%clk
0:02:55.7]} 8... Nc6 {[%clk 0:02:47.6]} 9. Qxe4 {[%clk 0:02:56]} 9... Bf5 {[%clk
0:02:47.4]} 10. Qa4 {[%clk 0:02:55.4]} 10... e5 {[%clk 0:02:34.5]} 11. Be3
{[%clk 0:02:54.1]} 11... Qa5 {[%clk 0:02:34]} 12. Qxa5 {[%clk 0:02:50.8]} 12...
Nxa5 {[%clk 0:02:33.5]} 13. Bb5+ {[%clk 0:02:45]} 13... Bd7 {[%clk 0:02:32.8]}
14. Bxd7+ {[%clk 0:02:42.4]} 14... Kxd7 {[%clk 0:02:32.9]} 15. O-O-O+ {[%clk
0:02:42.7]} 15... Ke6 {[%clk 0:02:33.1]} 16. f4 {[%clk 0:02:43.2]} 16... f6
{[%clk 0:02:21.8]} 17. fxe5 {[%clk 0:02:40.7]} 17... fxe5 {[%clk 0:02:22]} 18.
Nf3 {[%clk 0:02:41.1]} 18... Be7 {[%clk 0:02:22.1]} 19. Rhe1 {[%clk 0:02:37.9]}
19... Nc6 {[%clk 0:02:21.4]} 20. b4 {[%clk 0:02:28.4]} 20... a6 {[%clk
0:02:18.6]} 21. Bf4 {[%clk 0:02:21.2]} 21... Bf6 {[%clk 0:02:17.7]} 22. Nd4+
{[%clk 0:02:15]} 22... Nxd4 {[%clk 0:02:17.2]} 23. cxd4 {[%clk 0:02:13.7]} 23...
Rac8+ {[%clk 0:02:17.3]} 24. Kb2 {[%clk 0:02:12.7]} 24... Rc4 {[%clk 0:02:16]}
25. Bxe5 {[%clk 0:02:06]} 25... Rhc8 {[%clk 0:01:53]} 26. d5+ {[%clk 0:01:49]}
26... Kd7 {[%clk 0:01:51.6]} 27. Bxf6 {[%clk 0:01:46.4]} 27... gxf6 {[%clk
0:01:50.9]} 28. d6 {[%clk 0:01:25.3]} 28... Rxb4+ {[%clk 0:01:50]} 29. Ka1
{[%clk 0:01:24.9]} 29... Re8 {[%clk 0:01:49.1]} 30. Rxe8 {[%clk 0:01:16.6]}
30... Kxe8 {[%clk 0:01:48.9]} 31. Re1+ {[%clk 0:01:17.5]} 31... Kd7 {[%clk
0:01:48]} 32. Re7+ {[%clk 0:01:18]} 32... Kxd6 {[%clk 0:01:48.1]} 33. Rxh7
{[%clk 0:01:18.7]} 33... a5 {[%clk 0:01:45.6]} 34. a3 {[%clk 0:01:15]} 34... Rb3
{[%clk 0:01:40.8]} 35. Ka2 {[%clk 0:01:14.5]} 35... a4 {[%clk 0:01:41]} 36. Rg7
{[%clk 0:01:12.4]} 36... b5 {[%clk 0:01:32.5]} 37. h4 {[%clk 0:01:12.2]} 37...
Re3 {[%clk 0:01:32.6]} 38. Kb2 {[%clk 0:00:59.4]} 38... Re2+ {[%clk 0:01:27.1]}
39. Kc3 {[%clk 0:00:59.4]} 39... Ra2 {[%clk 0:01:25.9]} 40. Kb4 {[%clk
0:00:57.2]} 40... Rb2+ {[%clk 0:01:25.7]} 41. Ka5 {[%clk 0:00:57.1]} 41... Rb3
{[%clk 0:01:25.6]} 42. h5 {[%clk 0:00:55.4]} 42... Rxa3 {[%clk 0:01:24.5]} 43.
Kxb5 {[%clk 0:00:53.8]} 43... Ra1 {[%clk 0:01:23.6]} 44. Kb4 {[%clk 0:00:48.9]}
44... a3 {[%clk 0:01:19.8]} 45. g4 {[%clk 0:00:44.9]} 45... Ke5 {[%clk
0:01:12.9]} 46. Kb3 {[%clk 0:00:44.7]} 46... Kf4 {[%clk 0:01:08.3]} 47. Rg6
{[%clk 0:00:26.1]} 47... f5 {[%clk 0:00:55.9]} 48. g5 {[%clk 0:00:18.8]} 48...
Rh1 {[%clk 0:00:51.2]} 49. h6 {[%clk 0:00:18.4]} 49... Rh3+ {[%clk 0:00:51.1]}
50. Ka2 {[%clk 0:00:18.3]} 50... Kg4 {[%clk 0:00:31.2]} 51. Rg7 {[%clk
0:00:17.7]} 51... f4 {[%clk 0:00:31.6]} 52. h7 {[%clk 0:00:16.4]} 52... f3
{[%clk 0:00:29.8]} 53. g6 {[%clk 0:00:16.2]} 53... Kg5 {[%clk 0:00:24.8]} 54.
Rg8 {[%clk 0:00:10.1]} 54... f2 {[%clk 0:00:24.9]} 55. Rf8 {[%clk 0:00:09.3]}
55... Kxg6 {[%clk 0:00:24.5]} 56. Rxf2 {[%clk 0:00:09.2]} 56... Kxh7 {[%clk
0:00:24.8]} 57. Rf4 {[%clk 0:00:09.8]} 57... Kg6 {[%clk 0:00:24.6]} 58. Ra4
{[%clk 0:00:10.4]} 58... Kf5 {[%clk 0:00:22.2]} 1/2-1/2

[Event "Early-Titled-Tuesday-Blitz-February-06-2024"]
[Site "Chess.com"]
[Date "2024.02.06"]
[Round "10"]
[White "KbzasDavid16"]
[Black "the_chess_child"]
[Result "1-0"]
[WhiteElo "2574"]
[BlackElo "2842"]
[TimeControl "180+1"]
[EndTime "9:56:06 PST"]
[Termination "KbzasDavid16 won by checkmate"]

1. d4 {[%clk 0:03:00.9]} 1... Nf6 {[%clk 0:02:57.7]} 2. Nf3 {[%clk 0:02:53.9]}
2... g6 {[%clk 0:02:58.1]} 3. g3 {[%clk 0:02:54.3]} 3... Bg7 {[%clk 0:02:58.5]}
4. c4 {[%clk 0:02:54.5]} 4... O-O {[%clk 0:02:58.2]} 5. Bg2 {[%clk 0:02:54.5]}
5... d6 {[%clk 0:02:55.6]} 6. O-O {[%clk 0:02:54]} 6... c5 {[%clk 0:02:56.2]} 7.
Nc3 {[%clk 0:02:54]} 7... Nc6 {[%clk 0:02:56.5]} 8. b3 {[%clk 0:02:40.6]} 8...
d5 {[%clk 0:02:02.9]} 9. cxd5 {[%clk 0:01:58.8]} 9... Nxd5 {[%clk 0:01:57.5]}
10. Nxd5 {[%clk 0:01:58.4]} 10... Qxd5 {[%clk 0:01:58.4]} 11. Bb2 {[%clk
0:01:58.8]} 11... Qd6 {[%clk 0:01:49.6]} 12. e3 {[%clk 0:01:18]} 12... cxd4
{[%clk 0:01:39.5]} 13. Nxd4 {[%clk 0:01:15.5]} 13... Ne5 {[%clk 0:01:19.3]} 14.
Rc1 {[%clk 0:01:07.6]} 14... Bg4 {[%clk 0:01:18.4]} 15. Qc2 {[%clk 0:00:56.1]}
15... Rac8 {[%clk 0:01:12.7]} 16. Qe4 {[%clk 0:00:55.1]} 16... Rxc1 {[%clk
0:01:01]} 17. Rxc1 {[%clk 0:00:54.1]} 17... b6 {[%clk 0:01:01.5]} 18. h3 {[%clk
0:00:48.4]} 18... Bd7 {[%clk 0:00:57.9]} 19. f4 {[%clk 0:00:46.6]} 19... Nc6
{[%clk 0:00:51.3]} 20. Rxc6 {[%clk 0:00:33.6]} 20... Bxc6 {[%clk 0:00:48.5]} 21.
Qxc6 {[%clk 0:00:32.8]} 21... Qb4 {[%clk 0:00:41.1]} 22. Qc3 {[%clk 0:00:28.4]}
22... Qxc3 {[%clk 0:00:40]} 23. Bxc3 {[%clk 0:00:29.3]} 23... Rc8 {[%clk
0:00:40]} 24. Bb2 {[%clk 0:00:24.4]} 24... e5 {[%clk 0:00:26]} 25. Nc6 {[%clk
0:00:23.2]} 25... Kf8 {[%clk 0:00:22.6]} 26. Ba3+ {[%clk 0:00:22.6]} 26... Ke8
{[%clk 0:00:23.1]} 27. fxe5 {[%clk 0:00:21.2]} 27... Rc7 {[%clk 0:00:23.1]} 28.
Bd6 {[%clk 0:00:20.9]} 28... Rd7 {[%clk 0:00:23.2]} 29. Nb8 {[%clk 0:00:19.2]}
29... Re7 {[%clk 0:00:10.7]} 30. Bc6+ {[%clk 0:00:18]} 30... Kd8 {[%clk
0:00:10.9]} 31. Bxe7+ {[%clk 0:00:17.8]} 31... Kxe7 {[%clk 0:00:11.8]} 32. Bf3
{[%clk 0:00:12.2]} 32... Ke6 {[%clk 0:00:10.9]} 33. Nc6 {[%clk 0:00:11.9]} 33...
a5 {[%clk 0:00:11.3]} 34. Kf2 {[%clk 0:00:11.4]} 34... Bf8 {[%clk 0:00:11.2]}
35. Ke2 {[%clk 0:00:10.6]} 35... Bc5 {[%clk 0:00:11.5]} 36. Kd3 {[%clk
0:00:10.7]} 36... b5 {[%clk 0:00:11.2]} 37. Ke4 {[%clk 0:00:09.3]} 37... Kd7
{[%clk 0:00:10.4]} 38. Kd5 {[%clk 0:00:08.8]} 38... Bxe3 {[%clk 0:00:10.3]} 39.
Nxa5 {[%clk 0:00:09.3]} 39... Bd2 {[%clk 0:00:10.1]} 40. Nc6 {[%clk 0:00:08.4]}
40... h5 {[%clk 0:00:09.9]} 41. Kc5 {[%clk 0:00:06]} 41... Be1 {[%clk
0:00:09.4]} 42. g4 {[%clk 0:00:05.7]} 42... hxg4 {[%clk 0:00:09]} 43. Bxg4+
{[%clk 0:00:06.6]} 43... Kc7 {[%clk 0:00:09.2]} 44. Kxb5 {[%clk 0:00:06.7]}
44... Bc3 {[%clk 0:00:09.5]} 45. Kc5 {[%clk 0:00:06.6]} 45... Bb2 {[%clk
0:00:09.6]} 46. b4 {[%clk 0:00:06.7]} 46... Ba3 {[%clk 0:00:09.9]} 47. Nd4
{[%clk 0:00:04.3]} 47... Bb2 {[%clk 0:00:09.7]} 48. b5 {[%clk 0:00:04.3]} 48...
Bc3 {[%clk 0:00:08.6]} 49. a4 {[%clk 0:00:04.7]} 49... Kb7 {[%clk 0:00:08.8]}
50. Nc6 {[%clk 0:00:05]} 50... Kc7 {[%clk 0:00:08.8]} 51. a5 {[%clk 0:00:05.4]}
51... Kb7 {[%clk 0:00:09]} 52. a6+ {[%clk 0:00:05.5]} 52... Kc7 {[%clk 0:00:09]}
53. b6# {[%clk 0:00:06.1]} 1-0

[Event "Early-Titled-Tuesday-Blitz-February-06-2024"]
[Site "Chess.com"]
[Date "2024.02.06"]
[Round "10"]
[White "Flawless_Fighter"]
[Black "FARIZA2018"]
[Result "1-0"]
[WhiteElo "2721"]
[BlackElo "2521"]
[TimeControl "180+1"]
[EndTime "9:56:09 PST"]
[Termination "Flawless_Fighter won on time"]

1. e4 {[%clk 0:03:00.9]} 1... e5 {[%clk 0:02:59.9]} 2. Nf3 {[%clk 0:02:56.1]}
2... Nc6 {[%clk 0:02:59.8]} 3. Nc3 {[%clk 0:02:56.6]} 3... Nf6 {[%clk
0:02:59.4]} 4. Bb5 {[%clk 0:02:57.1]} 4... Nd4 {[%clk 0:02:48.8]} 5. O-O {[%clk
0:02:55.9]} 5... Nxb5 {[%clk 0:02:45.7]} 6. Nxb5 {[%clk 0:02:55.5]} 6... c6
{[%clk 0:02:46.2]} 7. Nc3 {[%clk 0:02:55.4]} 7... d6 {[%clk 0:02:46.9]} 8. d4
{[%clk 0:02:54.9]} 8... Qc7 {[%clk 0:02:47.4]} 9. Bg5 {[%clk 0:02:55]} 9... Be7
{[%clk 0:02:47.2]} 10. Qd3 {[%clk 0:02:55.3]} 10... h6 {[%clk 0:02:43.4]} 11.
Bxf6 {[%clk 0:02:52.3]} 11... Bxf6 {[%clk 0:02:43]} 12. d5 {[%clk 0:02:52.8]}
12... O-O {[%clk 0:02:41.9]} 13. Rfd1 {[%clk 0:02:52.7]} 13... Be7 {[%clk
0:02:41.1]} 14. a4 {[%clk 0:02:49.5]} 14... a5 {[%clk 0:02:21.2]} 15. h3 {[%clk
0:02:43.1]} 15... Kh8 {[%clk 0:02:12.4]} 16. Nxe5 {[%clk 0:02:33.7]} 16... dxe5
{[%clk 0:02:02.5]} 17. d6 {[%clk 0:02:34.6]} 17... Qd8 {[%clk 0:01:54]} 18. dxe7
{[%clk 0:02:33.4]} 18... Qxe7 {[%clk 0:01:54.1]} 19. Qd6 {[%clk 0:02:32.7]}
19... Qe8 {[%clk 0:01:48.2]} 20. Rd3 {[%clk 0:02:28.6]} 20... Be6 {[%clk
0:01:42.6]} 21. Qxe5 {[%clk 0:02:26.6]} 21... Qe7 {[%clk 0:01:36.2]} 22. Rad1
{[%clk 0:02:24.7]} 22... Rae8 {[%clk 0:01:33.2]} 23. Qd6 {[%clk 0:02:20.5]}
23... Qh4 {[%clk 0:01:30.4]} 24. Qg3 {[%clk 0:02:17]} 24... Qe7 {[%clk
0:01:27.2]} 25. b3 {[%clk 0:02:15.5]} 25... Qc5 {[%clk 0:01:00.4]} 26. Qd6
{[%clk 0:02:11.6]} 26... Qh5 {[%clk 0:01:00.1]} 27. Qf4 {[%clk 0:02:05.2]} 27...
f5 {[%clk 0:00:56.7]} 28. e5 {[%clk 0:01:50.7]} 28... g5 {[%clk 0:00:31.2]} 29.
Qd4 {[%clk 0:01:48.9]} 29... Qf7 {[%clk 0:00:23.6]} 30. Ne2 {[%clk 0:01:45.1]}
30... Kh7 {[%clk 0:00:22.8]} 31. f3 {[%clk 0:01:42]} 31... f4 {[%clk 0:00:22.2]}
32. Nc3 {[%clk 0:01:40.5]} 32... Bf5 {[%clk 0:00:20.8]} 33. R3d2 {[%clk
0:01:39.9]} 33... Qe7 {[%clk 0:00:15.1]} 34. Re1 {[%clk 0:01:35.3]} 34... Rd8
{[%clk 0:00:14.4]} 35. Qf2 {[%clk 0:01:35.8]} 35... Rxd2 {[%clk 0:00:14]} 36.
Qxd2 {[%clk 0:01:36.7]} 36... Rd8 {[%clk 0:00:14.1]} 37. Qf2 {[%clk 0:01:35.9]}
37... Qe6 {[%clk 0:00:13.6]} 38. Ne4 {[%clk 0:01:32.8]} 38... Bxe4 {[%clk
0:00:05.8]} 39. Rxe4 {[%clk 0:01:33.7]} 39... Rd1+ {[%clk 0:00:05.5]} 40. Kh2
{[%clk 0:01:33.7]} 40... Rd5 {[%clk 0:00:05]} 41. Qe2 {[%clk 0:01:33.3]} 41...
Kg6 {[%clk 0:00:04.5]} 42. c4 {[%clk 0:01:30]} 42... Rd7 {[%clk 0:00:04.5]} 43.
Qc2 {[%clk 0:01:30.4]} 43... Kg7 {[%clk 0:00:03.9]} 44. Re2 {[%clk 0:01:28.7]}
44... c5 {[%clk 0:00:04.3]} 45. Qe4 {[%clk 0:01:28.3]} 45... b6 {[%clk
0:00:04.1]} 46. Qa8 {[%clk 0:01:21.9]} 46... Re7 {[%clk 0:00:03.7]} 47. Qd5
{[%clk 0:01:20.6]} 47... Kf7 {[%clk 0:00:03.8]} 48. h4 {[%clk 0:01:17.6]} 48...
Rd7 {[%clk 0:00:03.6]} 49. Qe4 {[%clk 0:01:17.2]} 49... Kg7 {[%clk 0:00:03.6]}
50. Qa8 {[%clk 0:01:10.3]} 50... Re7 {[%clk 0:00:03.2]} 51. Qd5 {[%clk
0:01:10.2]} 51... Kf7 {[%clk 0:00:03.4]} 52. h5 {[%clk 0:01:07.7]} 52... Rd7
{[%clk 0:00:03.1]} 53. Qe4 {[%clk 0:01:07.4]} 53... Kg7 {[%clk 0:00:03.4]} 54.
g4 {[%clk 0:01:03.8]} 54... Rd4 {[%clk 0:00:02.7]} 55. Qf5 {[%clk 0:01:00.9]}
55... Qxf5 {[%clk 0:00:02.9]} 56. gxf5 {[%clk 0:01:01.5]} 56... Kf7 {[%clk
0:00:03.3]} 57. e6+ {[%clk 0:00:57.7]} 57... Ke8 {[%clk 0:00:03.5]} 58. f6
{[%clk 0:00:57.9]} 58... Rd6 {[%clk 0:00:03.2]} 59. Kh3 {[%clk 0:00:56.3]} 59...
Rc6 {[%clk 0:00:03.1]} 60. Kg4 {[%clk 0:00:56.5]} 1-0